[Event "Turkish Cup 2022"]
[Site "Sakarya"]
[Date "2022.03.28"]
[Round "6.31"]
[White "Surucu, Efe Mustafa"]
[Black "Gazioglu, Halit"]
[Result "1-0"]
[ECO "C47"]
[WhiteElo "1598"]
[BlackElo "1880"]
[Annotator "NA"]
[PlyCount "73"]
[EventDate "2022.03.25"]
[EventType "swiss"]
[EventCountry "TUR"]
[SourceTitle "playchess.com"]
[Source "ChessBase"]
[SourceQuality "1"]
[TimeControl "5400+30"]

1. e4 e5 2. Nf3 Nc6 3. Nc3 Nf6 4. a3 {[%emt 0:00:30]} Be7 {[%emt 0:02:30]} 5. d4 {[%emt 0:00:30]} d6 {[%emt 0:01:30]} 6. d5 {[%emt 0:01:30]} Nb8 {[%emt 0:02:30]} 7. Bd3 {[%emt 0:00:30]} O-O {[%emt 0:02:30]} 8. Ne2 {[%emt 0:00:30]} c6 {[%emt 0:01:30]} 9. c4 {[%emt 0:00:00]} Nbd7 {[%emt 0:04:30]} 10. Ng3 {[%emt 0:00:00]} Nc5 {[%emt 0:00:30]} 11. Bc2 {[%emt 0:01:30]} a5 {[%emt 0:01:30]} 12. O-O {[%emt 0:02:30]} cxd5 {[%emt 0:03:30]} 13. cxd5 {[%emt 0:00:30]} Bd7 {[%emt 0:02:30]} 14. h3 {[%emt 0:02:30]} a4 {[%emt 0:00:30]} 15. Be3 {[%emt 0:00:30]} b6 {[%emt 0:03:30]} 16. Nh2 {[%emt 0:02:30]} Ne8 {[%emt 0:07:30]} 17. f4 {[%emt 0:02:30]} Bh4 {[%emt 0:02:30]} 18. Qf3 {[%emt 0:05:30]} exf4 {[%emt 0:07:30]} 19. Qxf4 {[%emt 0:09:30]} Qf6 {[%emt 0:12:30]} 20. Nf5 {[%emt 0:19:30]} Bxf5 {[%emt 0:00:00]} 21. exf5 {[%emt 0:00:30]} Qe7 {[%emt 0:08:00]} 22. Nf3 {[%emt 0:05:30]} Bf6 {[%emt 0:00:30]} 23. Rae1 {[%emt 0:00:30]} Qb7 {[%emt 0:03:30]} 24. g4 {[%emt 0:02:30]} h6 {[%emt 0:03:30]} 25. h4 {[%emt 0:02:30]} Qxd5 {[%emt 0:07:30]} 26. Rd1 {[%emt 0:00:30]} Qc6 {[%emt 0:01:30]} 27. g5 {[%emt 0:00:30]} hxg5 {[%emt 0:00:30]} 28. hxg5 {[%emt 0:00:00]} Bxb2 {[%emt 0:00:30]} 29. Qb4 {[%emt 0:01:00]} Be5 {[%emt 0:01:30]} 30. Qh4 {[%emt 0:06:30]} Nd7 {[%emt 0:02:53]} 31. Be4 {[%emt 0:00:30]} Qc3 {[%emt 0:00:55]} 32. Rd3 {[%emt 0:00:30]} Qa5 {[%emt 0:01:10]} 33. Kg2 {[%emt 0:10:30]} Bg3 {[%emt 0:15:55]} 34. Kxg3 {[%emt 0:00:30]} Nef6 {[%emt 0:00:58]} 35. Rh1 {[%emt 0:02:30]} Nxe4+ {[%emt 0:00:34]} 36. Kg2 {[%emt 0:00:30]} f6 {[%emt 0:01:38]} 37. g6 {[%emt 0:00:30]} 1-0

[Event "Turkish Cup 2022"]
[Site "Sakarya"]
[Date "2022.03.28"]
[Round "6.32"]
[White "Kayan, Veli"]
[Black "Oktem, Ege Tuna"]
[Result "0-1"]
[ECO "C01"]
[WhiteElo "1915"]
[BlackElo "1614"]
[Annotator "NA"]
[PlyCount "86"]
[EventDate "2022.03.25"]
[EventType "swiss"]
[EventCountry "TUR"]
[SourceTitle "playchess.com"]
[Source "ChessBase"]
[SourceQuality "1"]
[TimeControl "5400+30"]

1. e4 e6 2. d4 d5 3. Bd3 c5 {[%emt 0:01:00]} 4. c3 {[%emt 0:01:30]} dxe4 {[%emt 0:00:30]} 5. Bxe4 {[%emt 0:00:30]} cxd4 {[%emt 0:00:30]} 6. Qb3 {[%emt 0:00:30]} Nc6 {[%emt 0:00:30]} 7. Nf3 {[%emt 0:01:30]} Nf6 {[%emt 0:01:30]} 8. Bxc6+ {[%emt 0:00:30]} bxc6 {[%emt 0:00:00]} 9. cxd4 {[%emt 0:02:30]} Ba6 {[%emt 0:03:00]} 10. Be3 {[%emt 0:01:30]} Nd5 {[%emt 0:02:30]} 11. a3 {[%emt 0:02:30]} Bd6 {[%emt 0:02:30]} 12. Nbd2 {[%emt 0:07:30]} Qa5 {[%emt 0:01:30]} 13. Rc1 {[%emt 0:02:30]} O-O {[%emt 0:00:30]} 14. Qc2 {[%emt 0:10:30]} f5 {[%emt 0:03:30]} 15. b4 {[%emt 0:11:30]} Qxa3 {[%emt 0:00:30]} 16. Nc4 {[%emt 0:02:30]} Qxb4+ {[%emt 0:01:30]} 17. Bd2 {[%emt 0:00:30]} Qxc4 {[%emt 0:00:00]} 18. Qxc4 {[%emt 0:00:30]} Bxc4 {[%emt 0:00:00]} 19. Rxc4 {[%emt 0:00:30]} Rfc8 {[%emt 0:00:30]} 20. O-O {[%emt 0:00:00]} Nb6 {[%emt 0:05:30]} 21. Rcc1 {[%emt 0:01:00]} h6 {[%emt 0:00:30]} 22. Rfe1 {[%emt 0:01:30]} Kf7 {[%emt 0:00:30]} 23. Ba5 {[%emt 0:02:30]} Nd5 {[%emt 0:00:30]} 24. Rc4 {[%emt 0:01:30]} Rab8 {[%emt 0:03:30]} 25. g3 {[%emt 0:00:30]} Rb3 {[%emt 0:01:30]} 26. Kg2 {[%emt 0:02:30]} Rb2 {[%emt 0:00:30]} 27. Bd2 {[%emt 0:04:30]} g5 {[%emt 0:03:30]} 28. Bc1 {[%emt 0:00:30]} Ra2 {[%emt 0:01:30]} 29. Bxg5 {[%emt 0:12:30]} hxg5 {[%emt 0:02:30]} 30. Nxg5+ {[%emt 0:00:30]} Kf6 {[%emt 0:00:30]} 31. h4 {[%emt 0:00:30]} Bb8 {[%emt 0:05:30]} 32. Rxe6+ {[%emt 0:00:30]} Kg7 {[%emt 0:00:30]} 33. Rc5 {[%emt 0:05:30]} f4 {[%emt 0:01:30]} 34. h5 {[%emt 0:11:54]} fxg3 {[%emt 0:01:30]} 35. h6+ {[%emt 0:00:15]} Kf8 {[%emt 0:01:30]} 36. Rexc6 {[%emt 0:05:52]} Rxf2+ {[%emt 0:01:30]} 37. Kg1 {[%emt 0:05:05]} Rxc6 {[%emt 0:01:30]} 38. Rxc6 {[%emt 0:04:27]} Nf4 {[%emt 0:02:30]} 39. Rf6+ {[%emt 0:01:10]} Ke7 {[%emt 0:00:30]} 40. Rf7+ {[%emt 0:00:00]} Ke8 {[%emt 0:00:30]} 41. Rxf4 {[%emt 0:00:43]} Bxf4 {[%emt 0:00:30]} 42. Nh3 {[%emt 0:00:26]} Bxh6 {[%emt 0:00:30]} 43. Nxf2 {[%emt 0:00:30]} Be3 {[%emt 0:00:30]} 0-1

[Event "Turkish Cup 2022"]
[Site "Sakarya"]
[Date "2022.03.28"]
[Round "6.33"]
[White "Avsar, Gediz"]
[Black "Arcasoy, Tugrul"]
[Result "1-0"]
[ECO "C93"]
[WhiteElo "1506"]
[BlackElo "1883"]
[Annotator "NA"]
[PlyCount "75"]
[EventDate "2022.03.25"]
[EventType "swiss"]
[EventCountry "TUR"]
[SourceTitle "playchess.com"]
[Source "ChessBase"]
[SourceQuality "1"]
[TimeControl "5400+30"]

1. e4 e5 2. Nf3 Nc6 3. Bb5 {[%emt 0:01:00]} a6 {[%emt 0:02:00]} 4. Ba4 {[%emt 0:00:30]} Nf6 {[%emt 0:00:30]} 5. O-O {[%emt 0:00:30]} Be7 {[%emt 0:00:30]} 6. Re1 {[%emt 0:00:00]} b5 {[%emt 0:01:30]} 7. Bb3 {[%emt 0:00:00]} O-O {[%emt 0:00:30]} 8. c3 {[%emt 0:00:00]} d6 {[%emt 0:03:30]} 9. h3 {[%emt 0:00:00]} Bb7 {[%emt 0:00:30]} 10. d4 {[%emt 0:01:30]} h6 {[%emt 0:01:30]} 11. Nbd2 {[%emt 0:00:30]} Re8 {[%emt 0:01:30]} 12. Nf1 {[%emt 0:00:30]} Bf8 {[%emt 0:00:00]} 13. Ng3 {[%emt 0:00:30]} Qd7 {[%emt 0:07:00]} 14. Nh4 {[%emt 0:06:30]} Na5 {[%emt 0:19:30]} 15. Bc2 {[%emt 0:01:30]} g6 {[%emt 0:06:30]} 16. Qf3 {[%emt 0:06:30]} Nh7 {[%emt 0:05:30]} 17. Qd3 {[%emt 0:05:30]} Qe7 {[%emt 0:06:30]} 18. Nf3 {[%emt 0:01:30]} Bg7 {[%emt 0:02:30]} 19. a4 {[%emt 0:02:30]} Bc6 {[%emt 0:01:30]} 20. d5 {[%emt 0:06:30]} Bd7 {[%emt 0:00:30]} 21. b4 {[%emt 0:05:30]} Nb7 {[%emt 0:05:30]} 22. c4 {[%emt 0:03:30]} bxc4 {[%emt 0:02:30]} 23. Qxc4 {[%emt 0:01:30]} Rec8 {[%emt 0:00:30]} 24. Qe2 {[%emt 0:02:30]} c5 {[%emt 0:01:30]} 25. dxc6 {[%emt 0:01:30]} Bxc6 {[%emt 0:01:30]} 26. Bd3 {[%emt 0:03:30]} a5 {[%emt 0:01:30]} 27. b5 {[%emt 0:02:30]} Bd7 {[%emt 0:00:30]} 28. Be3 {[%emt 0:00:30]} Nf8 {[%emt 0:08:30]} 29. Bc4 {[%emt 0:04:30]} Ne6 {[%emt 0:00:30]} 30. Bd5 {[%emt 0:01:30]} Nf4 {[%emt 0:03:34]} 31. Bxf4 {[%emt 0:05:30]} exf4 {[%emt 0:00:17]} 32. Bxb7 {[%emt 0:00:30]} Bxb5 {[%emt 0:08:04]} 33. Qxb5 {[%emt 0:00:30]} Rcb8 {[%emt 0:00:22]} 34. Bxa8 {[%emt 0:01:30]} Rxb5 {[%emt 0:00:30]} 35. axb5 {[%emt 0:00:30]} fxg3 {[%emt 0:00:00]} 36. b6 {[%emt 0:00:30]} gxf2+ {[%emt 0:00:27]} 37. Kxf2 {[%emt 0:00:30]} Bxa1 {[%emt 0:01:01]} 38. b7 {[%emt 0:00:00]} 1-0

[Event "Turkish Cup 2022"]
[Site "Sakarya"]
[Date "2022.03.28"]
[Round "6.34"]
[White "Unesi, Erdal"]
[Black "Kaygisiz, Ozgur Can"]
[Result "1-0"]
[ECO "B77"]
[WhiteElo "1861"]
[BlackElo "1744"]
[Annotator "NA"]
[PlyCount "57"]
[EventDate "2022.03.25"]
[EventType "swiss"]
[EventCountry "TUR"]
[SourceTitle "playchess.com"]
[Source "ChessBase"]
[SourceQuality "1"]
[TimeControl "5400+30"]

1. e4 {[%emt 0:02:00]} c5 {[%emt 0:01:00]} 2. Nc3 {[%emt 0:00:30]} d6 {[%emt 0:00:30]} 3. Nge2 {[%emt 0:00:30]} Nc6 {[%emt 0:00:30]} 4. d4 {[%emt 0:00:00]} cxd4 {[%emt 0:01:30]} 5. Nxd4 {[%emt 0:00:00]} g6 {[%emt 0:03:30]} 6. Be3 {[%emt 0:01:30]} Bg7 {[%emt 0:00:30]} 7. f3 {[%emt 0:01:30]} Nf6 {[%emt 0:02:30]} 8. Qd2 {[%emt 0:02:30]} O-O {[%emt 0:01:30]} 9. Bc4 {[%emt 0:02:30]} a6 {[%emt 0:00:00]} 10. O-O-O {[%emt 0:01:30]} Qc7 {[%emt 0:00:00]} 11. Bb3 {[%emt 0:00:30]} Na5 {[%emt 0:01:30]} 12. Kb1 {[%emt 0:00:30]} Nxb3 {[%emt 0:00:30]} 13. axb3 {[%emt 0:00:00]} b5 {[%emt 0:09:30]} 14. Bh6 {[%emt 0:01:00]} Bd7 {[%emt 0:02:30]} 15. Bxg7 {[%emt 0:00:30]} Kxg7 {[%emt 0:00:30]} 16. g4 {[%emt 0:00:00]} b4 {[%emt 0:02:30]} 17. Nd5 {[%emt 0:01:00]} Nxd5 {[%emt 0:01:30]} 18. exd5 {[%emt 0:00:00]} Rfb8 {[%emt 0:05:30]} 19. h4 {[%emt 0:00:00]} h6 {[%emt 0:03:30]} 20. Rde1 {[%emt 0:06:30]} Re8 {[%emt 0:06:30]} 21. h5 {[%emt 0:03:30]} g5 {[%emt 0:00:30]} 22. f4 {[%emt 0:00:30]} f6 {[%emt 0:13:30]} 23. fxg5 {[%emt 0:01:30]} hxg5 {[%emt 0:04:30]} 24. Qd3 {[%emt 0:01:30]} Bxg4 {[%emt 0:01:30]} 25. Qg6+ {[%emt 0:00:30]} Kf8 {[%emt 0:01:30]} 26. h6 {[%emt 0:00:30]} e5 {[%emt 0:00:00]} 27. Rhf1 {[%emt 0:13:30]} Re7 {[%emt 0:01:00]} 28. Rxf6+ {[%emt 0:00:30]} Rf7 {[%emt 0:00:30]} 29. Qg7+ {[%emt 0:00:30]} 1-0

[Event "Turkish Cup 2022"]
[Site "Sakarya"]
[Date "2022.03.28"]
[Round "6.35"]
[White "Celik, Ege Yigit"]
[Black "Isbilir, Okan"]
[Result "1/2-1/2"]
[ECO "A20"]
[WhiteElo "1466"]
[BlackElo "1915"]
[Annotator "NA"]
[PlyCount "123"]
[EventDate "2022.03.25"]
[EventType "swiss"]
[EventCountry "TUR"]
[SourceTitle "playchess.com"]
[Source "ChessBase"]
[SourceQuality "1"]
[TimeControl "5400+30"]

1. c4 e5 2. d3 {[%emt 0:00:30]} Nf6 {[%emt 0:02:30]} 3. Nf3 {[%emt 0:00:30]} Nc6 {[%emt 0:00:30]} 4. a3 {[%emt 0:00:30]} d5 {[%emt 0:00:30]} 5. cxd5 {[%emt 0:00:30]} Nxd5 {[%emt 0:00:30]} 6. Nbd2 {[%emt 0:00:00]} Be6 {[%emt 0:00:30]} 7. e3 {[%emt 0:00:00]} Be7 {[%emt 0:01:30]} 8. Be2 {[%emt 0:00:30]} O-O {[%emt 0:00:00]} 9. O-O {[%emt 0:00:30]} Qd7 {[%emt 0:00:00]} 10. Qc2 {[%emt 0:00:30]} f6 {[%emt 0:00:30]} 11. b4 {[%emt 0:00:30]} a5 {[%emt 0:02:30]} 12. b5 {[%emt 0:01:30]} Na7 {[%emt 0:00:30]} 13. d4 {[%emt 0:00:30]} exd4 {[%emt 0:04:30]} 14. Nxd4 {[%emt 0:01:30]} Bf7 {[%emt 0:00:30]} 15. Bb2 {[%emt 0:01:30]} c5 {[%emt 0:00:30]} 16. bxc6 {[%emt 0:03:30]} Nxc6 {[%emt 0:00:30]} 17. Rfc1 {[%emt 0:10:30]} Nxd4 {[%emt 0:03:30]} 18. Bxd4 {[%emt 0:01:30]} Rfc8 {[%emt 0:00:30]} 19. Qb2 {[%emt 0:00:30]} Rxc1+ {[%emt 0:01:30]} 20. Rxc1 {[%emt 0:01:30]} Rc8 {[%emt 0:01:30]} 21. Rxc8+ {[%emt 0:06:30]} Qxc8 {[%emt 0:01:30]} 22. Bc4 {[%emt 0:00:30]} Nc7 {[%emt 0:10:30]} 23. Bxf7+ {[%emt 0:08:30]} Kxf7 {[%emt 0:00:00]} 24. Qc3 {[%emt 0:00:30]} Qd7 {[%emt 0:02:00]} 25. Nb3 {[%emt 0:26:30]} Ne6 {[%emt 0:06:30]} 26. Qxa5 {[%emt 0:03:30]} b5 {[%emt 0:07:30]} 27. h3 {[%emt 0:03:30]} h6 {[%emt 0:00:30]} 28. Qa6 {[%emt 0:01:30]} Qd5 {[%emt 0:01:30]} 29. Na5 {[%emt 0:02:30]} Bxa3 {[%emt 0:02:30]} 30. Nc6 {[%emt 0:01:30]} Qb3 {[%emt 0:07:30]} 31. Qb7+ {[%emt 0:03:30]} Kg8 {[%emt 0:02:30]} 32. Qc8+ {[%emt 0:00:30]} Kh7 {[%emt 0:00:30]} 33. Qd7 {[%emt 0:00:30]} Qb1+ {[%emt 0:02:30]} 34. Kh2 {[%emt 0:00:30]} Qf5 {[%emt 0:00:30]} 35. f4 {[%emt 0:02:18]} Nxd4 {[%emt 0:00:30]} 36. Qxd4 {[%emt 0:00:09]} Bc5 {[%emt 0:01:30]} 37. Qc3 {[%emt 0:00:45]} h5 {[%emt 0:05:30]} 38. Qc1 {[%emt 0:01:15]} Qd5 {[%emt 0:01:30]} 39. Qb1+ {[%emt 0:00:15]} Kh6 {[%emt 0:01:30]} 40. Qxb5 {[%emt 0:00:17]} Qd6 {[%emt 0:00:00]} 41. Nd8 {[%emt 0:02:34]} Qe7 {[%emt 0:03:00]} 42. Ne6 {[%emt 0:00:18]} Bxe3 {[%emt 0:01:30]} 43. g4 {[%emt 0:03:43]} hxg4 {[%emt 0:00:30]} 44. hxg4 {[%emt 0:00:00]} g5 {[%emt 0:03:30]} 45. fxg5+ {[%emt 0:01:00]} fxg5 {[%emt 0:00:30]} 46. Qf5 {[%emt 0:03:05]} Bf4+ {[%emt 0:03:30]} 47. Nxf4 {[%emt 0:11:18]} gxf4 {[%emt 0:01:30]} 48. Qxf4+ {[%emt 0:00:05]} Kg6 {[%emt 0:00:30]} 49. Qf5+ {[%emt 0:00:30]} Kh6 {[%emt 0:00:30]} 50. Qh5+ {[%emt 0:00:00]} Kg7 {[%emt 0:00:00]} 51. Qf5 {[%emt 0:00:21]} Qe3 {[%emt 0:01:00]} 52. g5 {[%emt 0:01:21]} Qe2+ {[%emt 0:00:30]} 53. Kg3 {[%emt 0:00:07]} Qe3+ {[%emt 0:00:00]} 54. Kg4 {[%emt 0:00:08]} Qg1+ {[%emt 0:01:00]} 55. Kh3 {[%emt 0:00:32]} Qh1+ {[%emt 0:00:00]} 56. Kg3 {[%emt 0:00:30]} Qg1+ {[%emt 0:00:00]} 57. Kh4 {[%emt 0:00:24]} Qh2+ {[%emt 0:00:00]} 58. Kg4 {[%emt 0:00:30]} Qg2+ {[%emt 0:00:00]} 59. Kh5 {[%emt 0:00:00]} Qh2+ {[%emt 0:00:00]} 60. Kg4 {[%emt 0:00:00]} Qg2+ {[%emt 0:00:00]} 61. Kf4 {[%emt 0:00:03]} Qf2+ {[%emt 0:00:30]} 62. Ke5 {[%emt 0:00:00]} 1/2-1/2

[Event "Turkish Cup 2022"]
[Site "Sakarya"]
[Date "2022.03.28"]
[Round "6.36"]
[White "Anacak, Hasan Gunes"]
[Black "Sakmak, Kutay"]
[Result "1-0"]
[ECO "B23"]
[WhiteElo "1798"]
[BlackElo "1718"]
[Annotator "NA"]
[PlyCount "125"]
[EventDate "2022.03.25"]
[EventType "swiss"]
[EventCountry "TUR"]
[SourceTitle "playchess.com"]
[Source "ChessBase"]
[SourceQuality "1"]
[TimeControl "5400+30"]

1. e4 {[%emt 0:02:00]} c5 {[%emt 0:01:00]} 2. Nc3 {[%emt 0:00:30]} e6 {[%emt 0:00:30]} 3. Nge2 {[%emt 0:00:30]} Nc6 {[%emt 0:00:00]} 4. g3 {[%emt 0:03:30]} g6 {[%emt 0:02:00]} 5. d4 {[%emt 0:04:30]} Bg7 {[%emt 0:09:30]} 6. dxc5 {[%emt 0:03:30]} Qa5 {[%emt 0:02:30]} 7. Bg2 {[%emt 0:00:30]} Qxc5 {[%emt 0:00:30]} 8. Be3 {[%emt 0:01:30]} Qa5 {[%emt 0:04:30]} 9. O-O {[%emt 0:03:30]} Nf6 {[%emt 0:01:30]} 10. h3 {[%emt 0:13:30]} O-O {[%emt 0:10:30]} 11. f4 {[%emt 0:05:30]} d5 {[%emt 0:04:30]} 12. e5 {[%emt 0:06:30]} Nd7 {[%emt 0:00:30]} 13. a3 {[%emt 0:11:30]} a6 {[%emt 0:02:30]} 14. Qe1 {[%emt 0:05:30]} Rd8 {[%emt 0:07:30]} 15. Qf2 {[%emt 0:01:30]} b5 {[%emt 0:03:30]} 16. Nc1 {[%emt 0:15:22]} Bb7 {[%emt 0:07:30]} 17. Nd3 {[%emt 0:04:21]} Qc7 {[%emt 0:02:30]} 18. Ne2 {[%emt 0:00:08]} Bf8 {[%emt 0:04:30]} 19. g4 {[%emt 0:01:28]} Rdc8 {[%emt 0:09:30]} 20. Rae1 {[%emt 0:06:58]} a5 {[%emt 0:03:30]} 21. c3 {[%emt 0:03:37]} b4 {[%emt 0:02:30]} 22. f5 {[%emt 0:01:05]} Ndxe5 {[%emt 0:04:29]} 23. Nxe5 {[%emt 0:00:20]} Nxe5 {[%emt 0:00:02]} 24. fxe6 {[%emt 0:00:52]} fxe6 {[%emt 0:01:30]} 25. Qf6 {[%emt 0:01:08]} Bg7 {[%emt 0:03:26]} 26. Qxe6+ {[%emt 0:00:30]} Kh8 {[%emt 0:00:02]} 27. Bb6 {[%emt 0:02:33]} Qc4 {[%emt 0:03:56]} 28. Nd4 {[%emt 0:00:41]} Re8 {[%emt 0:04:34]} 29. Qd6 {[%emt 0:00:08]} Rac8 {[%emt 0:02:16]} 30. Bxa5 {[%emt 0:01:29]} bxa3 {[%emt 0:00:25]} 31. bxa3 {[%emt 0:00:25]} Qa4 {[%emt 0:01:49]} 32. Bb4 {[%emt 0:00:36]} Ba6 {[%emt 0:00:30]} 33. Rf2 {[%emt 0:00:45]} Nc4 {[%emt 0:02:23]} 34. Rxe8+ {[%emt 0:00:09]} Rxe8 {[%emt 0:00:01]} 35. Qxd5 {[%emt 0:00:50]} Qd1+ {[%emt 0:01:17]} 36. Rf1 {[%emt 0:00:24]} Qd2 {[%emt 0:00:00]} 37. Qc6 {[%emt 0:00:35]} Qe3+ {[%emt 0:00:42]} 38. Kh1 {[%emt 0:00:04]} Nd2 {[%emt 0:00:29]} 39. Qxa6 {[%emt 0:01:09]} Nxf1 {[%emt 0:00:16]} 40. Qxf1 {[%emt 0:00:07]} Qg3 {[%emt 0:00:38]} 41. Ne2 {[%emt 0:00:50]} Qe3 {[%emt 0:00:21]} 42. Bf3 {[%emt 0:00:04]} Rd8 {[%emt 0:00:21]} 43. c4 {[%emt 0:00:34]} Rd3 {[%emt 0:00:38]} 44. Kg2 {[%emt 0:00:40]} Rb3 {[%emt 0:00:41]} 45. Qf2 {[%emt 0:00:12]} Qe8 {[%emt 0:00:41]} 46. c5 {[%emt 0:00:44]} Be5 {[%emt 0:00:29]} 47. c6 {[%emt 0:00:47]} Rb1 {[%emt 0:00:32]} 48. Be4 {[%emt 0:00:35]} Rd1 {[%emt 0:00:24]} 49. Qf8+ {[%emt 0:00:43]} Qxf8 {[%emt 0:00:30]} 50. Bxf8 {[%emt 0:00:00]} Kg8 {[%emt 0:00:00]} 51. Bb4 {[%emt 0:00:07]} Kf7 {[%emt 0:00:13]} 52. Bc2 {[%emt 0:00:09]} Ra1 {[%emt 0:00:32]} 53. Bb3+ {[%emt 0:00:43]} Kf6 {[%emt 0:00:08]} 54. Kf3 {[%emt 0:00:27]} Rh1 {[%emt 0:00:20]} 55. g5+ {[%emt 0:01:05]} Kxg5 {[%emt 0:00:45]} 56. Be7+ {[%emt 0:00:30]} Kh6 {[%emt 0:01:14]} 57. Be6 {[%emt 0:00:46]} Bc7 {[%emt 0:00:21]} 58. Ng3 {[%emt 0:00:06]} Re1 {[%emt 0:01:14]} 59. Bf8+ {[%emt 0:00:25]} Kg5 {[%emt 0:00:00]} 60. Ne4+ {[%emt 0:00:18]} Kh4 {[%emt 0:00:06]} 61. Be7+ {[%emt 0:00:52]} Kh5 {[%emt 0:00:30]} 62. Bg4+ {[%emt 0:00:30]} Kh6 {[%emt 0:00:30]} 63. Bf8# {[%emt 0:00:00]} 1-0

[Event "Turkish Cup 2022"]
[Site "Sakarya"]
[Date "2022.03.28"]
[Round "6.37"]
[White "Ozcan, Kadir Kutay"]
[Black "Gozubuyukoglu, Selami"]
[Result "1-0"]
[ECO "C33"]
[WhiteElo "1878"]
[BlackElo "1747"]
[Annotator "NA"]
[PlyCount "114"]
[EventDate "2022.03.25"]
[EventType "swiss"]
[EventCountry "TUR"]
[SourceTitle "playchess.com"]
[Source "ChessBase"]
[SourceQuality "1"]
[TimeControl "5400+30"]

1. e4 {[%emt 0:07:00]} e5 {[%emt 0:01:00]} 2. f4 {[%emt 0:00:30]} exf4 {[%emt 0:00:30]} 3. Bc4 {[%emt 0:00:00]} Qh4+ {[%emt 0:01:30]} 4. Kf1 {[%emt 0:00:00]} d5 {[%emt 0:00:30]} 5. Bxd5 {[%emt 0:00:30]} Nf6 {[%emt 0:00:30]} 6. Nf3 {[%emt 0:01:30]} Qh5 {[%emt 0:00:30]} 7. Nc3 {[%emt 0:02:30]} c6 {[%emt 0:03:30]} 8. Bb3 {[%emt 0:01:30]} g5 {[%emt 0:07:30]} 9. d4 {[%emt 0:06:30]} Bg4 {[%emt 0:04:30]} 10. Qd3 {[%emt 0:04:30]} Bg7 {[%emt 0:02:30]} 11. h4 {[%emt 0:02:30]} Bxf3 {[%emt 0:04:30]} 12. Qxf3 {[%emt 0:05:30]} Qxf3+ {[%emt 0:02:30]} 13. gxf3 {[%emt 0:00:00]} Nh5 {[%emt 0:01:30]} 14. Ne2 {[%emt 0:04:00]} h6 {[%emt 0:01:30]} 15. Bd2 {[%emt 0:08:30]} Nd7 {[%emt 0:03:30]} 16. Rd1 {[%emt 0:03:30]} O-O {[%emt 0:02:30]} 17. hxg5 {[%emt 0:01:30]} Ng3+ {[%emt 0:00:30]} 18. Nxg3 {[%emt 0:00:30]} fxg3 {[%emt 0:00:30]} 19. gxh6 {[%emt 0:00:30]} Bf6 {[%emt 0:01:30]} 20. e5 {[%emt 0:05:30]} Be7 {[%emt 0:00:00]} 21. e6 {[%emt 0:00:00]} fxe6 {[%emt 0:01:00]} 22. Bxe6+ {[%emt 0:00:00]} Kh8 {[%emt 0:00:30]} 23. Bxd7 {[%emt 0:04:30]} Rxf3+ {[%emt 0:00:30]} 24. Kg2 {[%emt 0:00:30]} Rf2+ {[%emt 0:00:00]} 25. Kxg3 {[%emt 0:00:30]} Raf8 {[%emt 0:00:00]} 26. Bg4 {[%emt 0:01:30]} Bd6+ {[%emt 0:04:30]} 27. Kh4 {[%emt 0:01:30]} Rg2 {[%emt 0:01:30]} 28. Bg5 {[%emt 0:04:30]} Bf4 {[%emt 0:02:30]} 29. Rdg1 {[%emt 0:06:30]} Bxg5+ {[%emt 0:07:30]} 30. Kxg5 {[%emt 0:00:30]} Rg8+ {[%emt 0:00:30]} 31. Kf6 {[%emt 0:00:30]} R8xg4 {[%emt 0:00:30]} 32. Rxg2 {[%emt 0:00:30]} Rxg2 {[%emt 0:00:30]} 33. Rc1 {[%emt 0:00:00]} Re2 {[%emt 0:00:30]} 34. b3 {[%emt 0:01:00]} Re4 {[%emt 0:02:30]} 35. c3 {[%emt 0:00:00]} Rh4 {[%emt 0:02:30]} 36. Kg6 {[%emt 0:01:00]} Rg4+ {[%emt 0:00:30]} 37. Kf7 {[%emt 0:01:30]} Rh4 {[%emt 0:00:30]} 38. Ke7 {[%emt 0:00:30]} Rxh6 {[%emt 0:00:00]} 39. c4 {[%emt 0:01:30]} Rh7+ {[%emt 0:01:00]} 40. Kd6 {[%emt 0:00:00]} Kg8 {[%emt 0:00:00]} 41. Rf1 {[%emt 0:01:00]} Rh6+ {[%emt 0:06:00]} 42. Kc7 {[%emt 0:00:30]} Rh7+ {[%emt 0:00:30]} 43. Kb8 {[%emt 0:00:30]} b5 {[%emt 0:00:00]} 44. cxb5 {[%emt 0:00:00]} cxb5 {[%emt 0:00:00]} 45. Rc1 {[%emt 0:01:00]} Rh2 {[%emt 0:00:30]} 46. Kxa7 {[%emt 0:01:30]} Rxa2+ {[%emt 0:00:30]} 47. Kb6 {[%emt 0:00:30]} Rb2 {[%emt 0:00:30]} 48. Rc3 {[%emt 0:00:30]} b4 {[%emt 0:01:30]} 49. Rf3 {[%emt 0:06:30]} Rc2 {[%emt 0:00:30]} 50. d5 {[%emt 0:00:30]} Rc3 {[%emt 0:01:30]} 51. Rxc3 {[%emt 0:00:30]} bxc3 {[%emt 0:00:30]} 52. d6 {[%emt 0:00:00]} c2 {[%emt 0:06:30]} 53. d7 {[%emt 0:00:00]} Kf7 {[%emt 0:00:30]} 54. d8=Q {[%emt 0:00:30]} c1=Q {[%emt 0:00:30]} 55. Qc7+ {[%emt 0:00:30]} Qxc7+ {[%emt 0:00:30]} 56. Kxc7 {[%emt 0:00:00]} Ke6 {[%emt 0:00:30]} 57. b4 {[%emt 0:00:00]} Ke5 {[%emt 0:00:00]} 1-0